{"text_format":"1","workbook":"xlsx","n_sheets":14,"sheets":["Beveilig","Introductie","Algemeen","BI Organisatie","BI Expertise","BI Data-IT","BI Data Governance","BI Gebruik","BI Resultaten","BI Maturity","scores","Grafisch","Antwoorden","Toelichting Werkwijze"],"not_rendered":{"charts":3,"images":7,"macros":1,"external_links":0,"defined_names":5,"comments":1,"pivot_tables":1},"unopened":[],"bounds":{"document_bytes":16777216,"sheet_cells":100000,"rows_first":2000,"rows_last":500,"rows_between":2000,"halvings":0,"cell_chars":16384,"cell_head_chars":4096},"cells_cut":0,"cells_raw":0,"read":"whole","date_system":"1900"}

{"sheet":"Beveilig","index":0,"n_rows":15,"n_cols":6,"rows_kept":15,"cut":false,"hidden":false,"merged":[]}
[null,null,null,null,null,"Welkom bij de BI Maturity Quick scan Bij Zuiderduin.nl"]
[null,null,null,null,null,"Kies voor macro's inschakelen om de BI Quick Scan te starten."]
[]
[]
[]
[]
[]
[]
[]
[]
[]
[]
[]
[null,null,null,null,null,"Vragen: neem contact op met:"]
[null,null,null,null,null,"info@BijZuiderduin.nl"]

{"sheet":"Introductie","index":1,"n_rows":30,"n_cols":16,"rows_kept":30,"cut":false,"hidden":true,"merged":[]}
[null,null,null,null,null,null,null,null,null,null,null,null,null,null,null,"alles ingevuld"]
[null,null,"                              Welkom bij de Business Intelligence \n                              Quick Scan BijZuiderduin!",null,null,null,null,null,null,null,null,null,null,null,null,{"$f":"P18","v":false}]
[]
[null,null,"Deze Quick scan beoogt u inzicht te geven in de BI/Data volwassenheid van uw bedrijf als geheel en enkele deelaspecten. Met dit inzicht kunt u zien of er aspecten zijn waar u beter of minder goed presteert dan gemiddeld."]
[null,null,"Als u de vragen op de volgende 7 pagina's beantwoord krijgt u het resultaat te zien. Naar verwachting kost u dat 15-30 minuten."]
[]
[null,null,"Wanneer u het resultaat opstuurt, neem ik contact op om het resultaat te bespreken. Ik geef u dan mijn visie of er aspecten zijn die minder of juist extra aandacht nodig hebben en, zo mogelijk ook, waar kansen voor u liggen."]
[null,null,"Stuur daartoe het ingevulde document naar:  "]
[null,null,"info@BijZuiderduin.nl"]
[null,null,"Uw vragen kunt u daar ook kwijt."]
[]
[null,null,"Definitie Business Intelligence (BI)"]
[null,null,"BI, Big Data, Data Science: allemaal begrippen die raakvlakken hebben. Ik gebruik voor BI de Proces definitie van Daan van Beek:"]
[null,null,"BI is het continue proces waarmee organisaties op gerichte wijze (big) data verzamelen en registreren, combineren, analyseren en de daaruit resulterende (voorspellende) informatie en kennis consequent gebruiken om betere beslissingen te nemen. Dit met als doel de prestaties van de organisatie, teams en medewerkers substantieel te verbeteren."]
[]
[null,null,"Alle aangeleverde informatie zal vertrouwelijk worden verwerkt en niet herkenbaar aan derden beschikbaar gesteld worden."]
[]
[null,null,"Ik verklaar de werkwijze van deze Quick Scan niet verder te verspreiden maar alleen voor eigen gebruik in te zetten.",null,null,null,null,null,null,null,null,null,null,null,null,false]
[null,null,"Versie 1.1: 26-01-2021 © BijZuiderduin"]
[]
[null,null,"Bronvermelding"]
[null,null,"Bij de totstandkoming van deze vragenlijst is gebruik gemaakt van de volgende bronnen:"]
[null,null,"- Verdonck, Klooster en Associates, Datagedreven Quick Scan (https://www.vka.nl/quickscan-datagedreven-werken)"]
[null,null,"- Alten group, Data Maturity Scan (https://www.alten.nl/data-analytics/data-maturity-scan/)"]
[null,null,"- JADS MKB Datalab, Datavolwassenheid Quick Scan (https://www.alten.nl/data-analytics/data-maturity-scan/)"]
[null,null,"- KPMG Data Maturity Assessment (https://data-analytics.insightcenter.nl/#/home)"]
[null,null,"- Datacratisch werken, Daan van Beek (ISBN 978-90-828091-9-0)"]
[null,null,"- De intelligente datagedreven organisatie, Daan van Beek (ISBN 978-90-828091-2-1)"]
[null,null,"- Colleges 'Master of Data Science' van Dick Pouw en Jack Ebbelink"]
[null,null,"- DAMA-DMBOK Data Management Body of Knowledge (ISBN 978-16-346223-4-9)"]

{"sheet":"Algemeen","index":2,"n_rows":29,"n_cols":17,"rows_kept":29,"cut":false,"hidden":true,"merged":[[17,3,24,3]]}
[null,null,null,"Business Intelligence Quick Scan \nBijZuiderduin",null,null,null,null,null,null,null,null,null,null,null,"Pagina volledig ingevuld"]
[null,null,"Algemene bedrijfs- en contactinformatie",null,"Voortgang",{"$f":"0/7","v":0},null,null,null,null,null,null,null,null,null,{"$f":"AND(P6:P13)","v":false}]
[]
[]
[null,null,"Algemene bedrijfsgegevens"]
[null,null,"* Datum",null,null,null,null,null,null,null,null,null,null,null,null,{"$f":"NOT(ISBLANK(D6))","v":false}]
[null,null,"* Naam organisatie",null,null,null,null,null,null,null,null,null,null,null,null,{"$f":"NOT(ISBLANK(D7))","v":false}]
[null,null,"Branche"]
[null,null,"Afdeling"]
[null,null,"* Ingevuld door",null,null,null,null,null,null,null,null,null,null,null,null,{"$f":"NOT(ISBLANK(D10))","v":false}]
[null,null,"Functie"]
[null,null,"Telefoonnummer",null,null,null,null,null,null,null,null,null,"geen spatie","@","punt"]
[null,null,"* Email",null,null,null,null,null,null,null,null,null,{"$f":"ISERROR(FIND(\" \",$D13))","v":true},{"$f":"NOT(ISERROR(SEARCH(\"@\",$D13,2)))","v":false},{"$f":"NOT(ISERROR(SEARCH(\".\",$D13,SEARCH(\"@\",$D13)+1)))","v":false},{"$f":"NOT(ISBLANK(D13))","v":false},{"$f":"AND(M13,N13,O13)","v":false}]
[null,null,"Omzet"]
[null,null,"Bedrijfsomvang (#FTE)"]
[]
[]
[null,null,"Evt speciaal verzoek"]
[]
[]
[]
[]
[]
[]
[]
[]
[]
[]
[null,null,"* Verplichte gegevens"]

{"sheet":"BI Organisatie","index":3,"n_rows":22,"n_cols":19,"rows_kept":22,"cut":false,"hidden":true,"merged":[]}
[null,null,null,"Business Intelligence Quick Scan \nBijZuiderduin",null,null,null,null,null,null,null,null,null,null,null,"Pagina volledig ingevuld"]
[null,null,"BI Organisatie ","Voortgang",{"$f":"1/7","v":0.14285714285714285},null,null,null,null,null,null,null,null,null,null,{"$f":"AND(P8,R4)","v":false}]
["categorie",null,"vraag","mogelijke antwoorden",null,null,null,null,null,null,null,"Gewicht","note","waarde","waardering","ingevuld","resultaat","gewogen","regel"]
[null,null,null,null,null,null,null,null,null,null,null,null,null,null,null,null,null,{"$f":"(R5+R16)<>0","v":false}]
[null,null,"BI Visie","Kies een antwoord uit de pull downlijst die verschijnt als u het veld selecteert.",null,null,null,null,null,null,null,{"$f":"SUM(L6:L9)","v":120},null,null,null,null,null,{"$f":"SUM(R6:R9)","v":0}]
["Basis",null,"Hoe worden BI activiteiten geinitieerd?",null,null,null,null,null,null,null,null,40,null,null,null,null,{"$f":"VLOOKUP(D6,Antwoorden!A25:B29,2,0)","v":{"$error":"#N/A"}},{"$f":"IF(ISERROR(Q6),0,L6*Q6)","v":0}]
["Basis",null,"Hoe worden  BI ideeën opgepakt?",null,null,null,null,null,null,null,null,40,null,null,null,null,{"$f":"VLOOKUP(D7,Antwoorden!C25:D29,2,0)","v":{"$error":"#N/A"}},{"$f":"IF(ISERROR(Q7),0,L7*Q7)","v":0}]
[null,null,null,null,null,null,null,null,null,null,null,null,null,null,null,{"$f":"OR(P9:P14)","v":false}]
["Basis",null,"Wat is geldig voor de BI visie?","We hebben geen BI visie document",null,null,null,null,null,null,null,40,"Alleen laten zien als geen Nee bij vorige vraag",0,{"$f":"P9*N9","v":0},false,5,{"$f":"SUM(O9:O14)/SUM(N9:N14)*Q9*L9","v":0}]
[null,null,"(meerdere antwoorden mogelijk)","Is afgeleid van de bedrijfsstrategie",null,null,null,null,null,null,null,null,null,20,{"$f":"P10*N10","v":0},false]
[null,null,null,"Betreft alle afdelingen",null,null,null,null,null,null,null,null,null,20,0,false]
[null,null,null,"Is bekend in de organisatie",null,null,null,null,null,null,null,null,null,30,0,false]
[null,null,null,"Bevat een roadmap voor de middellange termijn",null,null,null,null,null,null,null,null,null,30,0,false]
[null,null,null,"Verantwoordelijkheid voor BI doelen is eenduidig belegd",null,null,null,null,null,null,null,null,null,30,0,false]
[]
[null,null,"Organisatie","Kies een antwoord uit de pull downlijst die verschijnt als u het veld selecteert.",null,null,null,null,null,null,null,{"$f":"SUM(L17:L20)","v":160},null,null,null,null,null,{"$f":"SUM(R17:R20)","v":0}]
["Basis",null,"Wie is eindverantwoordelijk voor BI?",null,null,null,null,null,null,null,null,40,null,null,null,null,{"$f":"VLOOKUP(D17,Antwoorden!E25:F34,2,0)","v":{"$error":"#N/A"}},{"$f":"IF(ISERROR(Q17),0,L17*Q17)","v":0}]
["Basis",null,"Wie maken er gebruik van BI data?",null,null,null,null,null,null,null,null,40,null,null,null,null,{"$f":"VLOOKUP(D18,Antwoorden!G25:H29,2,0)","v":{"$error":"#N/A"}},{"$f":"IF(ISERROR(Q18),0,L18*Q18)","v":0}]
["Basis",null,"Hoe zijn BI werkzaamheden georganiseerd?",null,null,null,null,null,null,null,null,40,null,null,null,null,{"$f":"VLOOKUP(D19,Antwoorden!I25:J30,2,0)","v":{"$error":"#N/A"}},{"$f":"IF(ISERROR(Q19),0,L19*Q19)","v":0}]
["Basis",null,"Wat is het niveau van BI kennis en cultuur?",null,null,null,null,null,null,null,null,40,null,null,null,null,{"$f":"VLOOKUP(D20,Antwoorden!K25:L30,2,0)","v":{"$error":"#N/A"}},{"$f":"IF(ISERROR(Q20),0,L20*Q20)","v":0}]
[]
[null,null,"Wat is uw ambitie over 1-2 jaar",null,null,null,null,null,null,null,null,1,null,null,null,null,{"$f":"VLOOKUP(D22,Antwoorden!M25:N29,2,0)","v":{"$error":"#N/A"}},{"$f":"IF(ISERROR(Q22),0,L22*Q22)","v":0}]

{"sheet":"BI Expertise","index":4,"n_rows":22,"n_cols":19,"rows_kept":22,"cut":false,"hidden":true,"merged":[[0,4,0,6]]}
[null,null,null,null,"Business Intelligence Quick Scan \nBijZuiderduin",null,null,null,null,null,null,null,null,null,null,"alles ingevuld"]
[null,null,"BI Expertise",null,null,null,"Voortgang",{"$f":"2/7","v":0.2857142857142857},null,null,null,{"$f":"SUM(L7:L11)","v":220},null,null,null,{"$f":"COUNTIF(P7:P11,0)=0","v":false},null,{"$f":"SUM(R7:R11)","v":0}]
["categorie",null,"vraag",null,"mogelijke antwoorden",null,null,null,null,null,null,"Gewicht","note","waarde","waardering","ingevuld","resultaat","gewogen","regel"]
[]
[]
["Basis",null,"Hoe is onderstaande BI expertise in het bedrijf beschikbaar?",null,"Niet beschikbaar","Beperkt beschikbaar","Beschikbaar maar beperkt gebruikt","Goed beschikbaar \nen gebruikt","Onbekend",null,null,{"$f":"SUM(L7:L11)","v":220},null,null,null,null,null,{"$f":"SUM(R7:R11)","v":0}]
["Basis",null,"BI Data ontsluiting en integratie",null,null,null,null,null,null,null,null,40,null,null,null,0,{"$f":"VLOOKUP(P7,$N$18:$O$22,2,0)","v":{"$error":"#N/A"}},{"$f":"IF(ISERROR(Q7),0,Q7*L7)","v":0}]
["Basis",null,"Rapportage en visualisatie",null,null,null,null,null,null,null,null,30,null,null,null,0,{"$f":"VLOOKUP(P8,$N$18:$O$22,2,0)","v":{"$error":"#N/A"}},{"$f":"IF(ISERROR(Q8),0,Q8*L8)","v":0},"als score vraag 1<3 dan vreemd als hier vraag 2>3"]
["Basis",null,"Combinatie BI en Bedrijfsproces kennis",null,null,null,null,null,null,null,null,40,null,null,null,0,{"$error":"#N/A"},0]
["Basis",null,"Data Science",null,null,null,null,null,null,null,null,60,null,null,null,0,{"$error":"#N/A"},0,"als score vraag 1<4 dan vreemd als hier vraag 4>2"]
["Basis",null,"Ad hoc data analyse",null,null,null,null,null,null,null,null,50,null,null,null,0,{"$error":"#N/A"},0,"als score vraag 1<3 dan vreemd als hier vraag 5>3"]
[]
[]
[]
[]
[]
[]
[null,null,null,null,null,null,null,null,null,null,null,null,null,1,1]
[null,null,null,null,null,null,null,null,null,null,null,null,null,2,2]
[null,null,null,null,null,null,null,null,null,null,null,null,null,3,3.5]
[null,null,null,null,null,null,null,null,null,null,null,null,null,4,5]
[null,null,null,null,null,null,null,null,null,null,null,null,null,5,1]

{"sheet":"BI Data-IT","index":5,"n_rows":20,"n_cols":19,"rows_kept":20,"cut":false,"hidden":true,"merged":[]}
[null,null,null,"Business Intelligence Quick Scan \nBijZuiderduin",null,null,null,null,null,null,null,null,null,null,null,"Pagina volledig ingevuld"]
[null,null,"BI Data-IT ","Voortgang",{"$f":"3/7","v":0.42857142857142855},null,null,null,null,null,null,null,null,null,null,{"$f":"P4=0","v":false}]
["categorie",null,"vraag","mogelijke antwoorden",null,null,null,null,null,null,null,"Gewicht","note","waarde","waardering","ingevuld","resultaat","gewogen","regel"]
[null,null,null,null,null,null,null,null,null,null,null,null,null,null,null,{"$f":"COUNTBLANK(D6:D9)+ COUNTBLANK(D12:D14)+COUNTBLANK(D17:D20)","v":11}]
[null,null,"BI data","Kies een antwoord uit de pull downlijst die verschijnt als u het veld selecteert.",null,null,null,null,null,null,null,{"$f":"SUM(L6:L9)","v":135},null,null,null,null,null,{"$f":"SUM(R6:R9)","v":0}]
["Basis",null,"Hoe wordt data voor BI gebruik ontsloten?",null,null,null,null,null,null,null,null,60,null,null,null,null,{"$f":"VLOOKUP(D6,Antwoorden!$A$4:$B$10,2,0)","v":{"$error":"#N/A"}},{"$f":"IF(ISERROR(Q6),0,L6*Q6)","v":0}]
["Basis",null,"Hoeveel historie is in de BI data beschikbaar?",null,null,null,null,null,null,null,null,25,null,null,null,null,{"$f":"VLOOKUP(D7,Antwoorden!$C$4:$D$8,2,0)","v":{"$error":"#N/A"}},{"$f":"IF(ISERROR(Q7),0,MIN($R$6,L7*Q7))","v":0},"maximaal de score op vraag 1"]
["Basis",null,"Hoe vaak wordt de BI data bijgewerkt?",null,null,null,null,null,null,null,null,25,null,null,null,null,{"$f":"VLOOKUP(D8,Antwoorden!$E$4:$F$8,2,0)","v":{"$error":"#N/A"}},{"$f":"IF(ISERROR(Q8),0,MIN($R$6,L8*Q8))","v":0},"maximaal de score op vraag 1"]
["Basis",null,"Wat is het detailniveau van de BI data?",null,null,null,null,null,null,null,null,25,null,null,null,null,{"$f":"VLOOKUP(D9,Antwoorden!$G$4:$H$8,2,0)","v":{"$error":"#N/A"}},0,"maximaal de score op vraag 1"]
[]
[null,null,"BI data bronnen",null,null,null,null,null,null,null,null,{"$f":"SUM(L12:L14)","v":80},null,null,null,null,null,{"$f":"SUM(R12:R14)","v":0}]
["Basis",null,"Uit hoeveel bedrijfsbronnen is data beschikbaar?",null,null,null,null,null,null,null,null,25,null,null,null,null,{"$f":"VLOOKUP(D12,Antwoorden!$I$4:$J$8,2,0)","v":{"$error":"#N/A"}},0]
["Basis",null,"Hoe wordt data uit externe databronnen ontsloten?",null,null,null,null,null,null,null,null,25,null,null,null,null,{"$f":"VLOOKUP(D13,Antwoorden!$K$4:$L$8,2,0)","v":{"$error":"#N/A"}},0]
["Basis",null,"Hoe snel kan een verzoek, om gecombineerde data uit meerdere basis systemen te leveren, worden gerealiseerd?",null,null,null,null,null,null,null,null,30,null,null,null,null,{"$f":"VLOOKUP(D14,Antwoorden!$M$4:$N$8,2,0)","v":{"$error":"#N/A"}},{"$f":"IF(ISERROR(Q14),0,MIN($R$6,L14*Q14))","v":0},"maximaal de score op vraag 1"]
[null,null,null,null,null,null,null,null,null,null,null,null,null,null,null,null,null,null,"score 'Volledige historie' op vraag 'Hoeveel historie': let op AVG!"]
[null,null,"BI data Beheer",null,null,null,null,null,null,null,null,{"$f":"SUM(L17:L20)","v":95},null,null,null,null,null,{"$f":"SUM(R17:R20)","v":0}]
["Basis",null,"Hoe vaak zijn er incidenten in de verwerking?",null,null,null,null,null,null,null,null,20,null,null,null,null,{"$f":"VLOOKUP(D17,Antwoorden!$O$4:$P$8,2,0)","v":{"$error":"#N/A"}},{"$f":"IF(ISERROR(Q17),0,MIN($R$6,L17*Q17))","v":0},"maximaal de score op vraag 1"]
["Basis",null,"Hoe snel kunnen wijzigingen in de datastromen verwerkt worden?",null,null,null,null,null,null,null,null,20,null,null,null,null,{"$f":"VLOOKUP(D18,Antwoorden!$Q$4:$R$8,2,0)","v":{"$error":"#N/A"}},{"$f":"IF(ISERROR(Q18),0,MIN($R$6,L18*Q18))","v":0},"maximaal de score op vraag 1"]
["Basis",null,"Hoe snel kunnen BI analyse resultaten in de praktijk worden toegepast (bv. bij klantcontacten)?",null,null,null,null,null,null,null,null,30,null,null,null,null,{"$f":"VLOOKUP(D19,Antwoorden!$U$4:$V$8,2,0)","v":{"$error":"#N/A"}},0]
["Basis",null,"Voldoet de huidige informatievoorziening?",null,null,null,null,null,null,null,null,25,null,null,null,null,{"$f":"VLOOKUP(D20,Antwoorden!$S$4:$T$8,2,0)","v":{"$error":"#N/A"}},0]

{"sheet":"BI Data Governance","index":6,"n_rows":24,"n_cols":19,"rows_kept":24,"cut":false,"hidden":true,"merged":[[15,3,15,8],[10,3,10,8],[9,3,9,8],[13,3,13,8],[11,3,11,8],[0,3,0,5],[8,3,8,8],[5,3,5,8],[7,3,7,8],[14,3,14,8],[12,3,12,8],[6,3,6,8]]}
[null,null,null,"Business Intelligence Quick Scan \nBijZuiderduin",null,null,null,null,null,null,null,"Totaal gewicht",null,null,null,"Pagina volledig ingevuld",null,"Totaal gewogen"]
[null,null,"BI Data Governance",null,null,null,null,"Voortgang",{"$f":"4/7","v":0.5714285714285714},null,null,{"$f":"SUM(L4:L17)","v":380},null,null,null,{"$f":"COUNTIF(P6:P16,0)=0","v":false},null,{"$f":"SUM(R4:R17)","v":0}]
["categorie",null,"vraag","mogelijke antwoorden",null,null,null,null,null,null,null,"Gewicht","note","waarde","waardering","ingevuld","resultaat","gewogen","regel"]
[]
[null,null,"Data Governance implementatie","Geen aandacht","Beperkt geïmplementeerd","Belegd in de organisatie","Regelmatig gereviewed","KPI's worden gerapporteerd","Onbekend",null,null,{"$f":"SUM(L6:L16)","v":190},null,null,null,null,null,{"$f":"SUM(R6:R16)","v":0}]
[null,null,"Data Governance (algemeen)",null,null,null,null,null,null,null,null,20,null,null,null,0,{"$f":"VLOOKUP(P6,$N$19:$O$24,2,0)","v":{"$error":"#N/A"}},{"$f":"IF(ISERROR(Q6),0,Q6*L6)","v":0}]
[null,null,"Data architectuur",null,null,null,null,null,null,null,null,15,null,null,null,0,{"$error":"#N/A"},{"$f":"IF(ISERROR(Q7),0,Q7*L7)","v":0}]
[null,null,"Meta Data Beheer",null,null,null,null,null,null,null,null,20,null,null,null,0,{"$error":"#N/A"},0]
[null,null,"Data Quality",null,null,null,null,null,null,null,null,20,null,null,null,0,{"$error":"#N/A"},0]
[null,null,"Data opslag en Operationeel Beheer",null,null,null,null,null,null,null,null,10,null,null,null,0,{"$error":"#N/A"},0]
[null,null,"Data Beveiliging",null,null,null,null,null,null,null,null,25,null,null,null,0,{"$error":"#N/A"},0]
[null,null,"Data   gebruik ethiek",null,null,null,null,null,null,null,null,25,null,null,null,0,{"$error":"#N/A"},0]
[null,null,"Master Data Management",null,null,null,null,null,null,null,null,15,null,null,null,0,{"$error":"#N/A"},0]
[null,null,"BI Data modeleren en ontwerp",null,null,null,null,null,null,null,null,15,null,null,null,0,{"$error":"#N/A"},0]
[null,null,"Data Warehouse & BI",null,null,null,null,null,null,null,null,10,null,null,null,0,{"$error":"#N/A"},0]
[null,null,"Document & Content Management",null,null,null,null,null,null,null,null,15,null,null,null,0,{"$error":"#N/A"},0]
[]
[]
[null,null,null,null,null,null,null,null,null,null,null,null,null,1,1]
[null,null,null,null,null,null,null,null,null,null,null,null,null,2,2]
[null,null,null,null,null,null,null,null,null,null,null,null,null,3,3]
[null,null,null,null,null,null,null,null,null,null,null,null,null,4,4]
[null,null,null,null,null,null,null,null,null,null,null,null,null,5,5]
[null,null,null,null,null,null,null,null,null,null,null,null,null,6,1]

{"sheet":"BI Gebruik","index":7,"n_rows":9,"n_cols":19,"rows_kept":9,"cut":false,"hidden":true,"merged":[]}
[null,null,null,"Business Intelligence Quick Scan \nBijZuiderduin",null,null,null,null,null,null,null,null,null,null,null,"Pagina volledig ingevuld"]
[null,null,"BI Gebruik ","Voortgang",{"$f":"5/7","v":0.7142857142857143},null,null,null,null,null,null,null,null,null,null,{"$f":"P4=0","v":false}]
["categorie",null,"vraag","mogelijke antwoorden",null,null,null,null,null,null,null,"Gewicht","note","waarde","waardering","ingevuld","resultaat","gewogen","regel"]
[null,null,null,null,null,null,null,null,null,null,null,{"$f":"SUM(L6:L12)","v":70},null,null,null,{"$f":"COUNTBLANK(D6:D9)","v":4},null,{"$f":"SUM(R6:R12)","v":0}]
[null,null,"Hoe wordt BI data in uw organisatie gebruikt?","Kies een antwoord uit de pull downlijst die verschijnt als u het veld selecteert."]
[null,null,"Hoe kunnen eindgebruikers informatie uit gecombineerde bronnen benaderen?",null,null,null,null,null,null,null,null,10,null,null,null,null,{"$f":"VLOOKUP(D6,Antwoorden!A16:B20,2,0)","v":{"$error":"#N/A"}},{"$f":"IF(ISERROR(Q6),0,L6*Q6)","v":0}]
[null,null,"Rapporteert de organisatie over BI KPI's?",null,null,null,null,null,null,null,null,20,null,null,null,null,{"$f":"VLOOKUP(D7,Antwoorden!C16:D20,2,0)","v":{"$error":"#N/A"}},{"$f":"IF(ISERROR(Q7),0,L7*Q7)","v":0}]
[null,null,"Hoe wordt BI data gezien?",null,null,null,null,null,null,null,null,20,null,null,null,null,{"$f":"VLOOKUP(D8,Antwoorden!E16:F20,2,0)","v":{"$error":"#N/A"}},0]
[null,null,"Wat wordt er met BI analyse resultaten gedaan?",null,null,null,null,null,null,null,null,20,null,null,null,null,{"$f":"VLOOKUP(D9,Antwoorden!G16:H20,2,0)","v":{"$error":"#N/A"}},0]

{"sheet":"BI Resultaten","index":8,"n_rows":29,"n_cols":19,"rows_kept":29,"cut":false,"hidden":true,"merged":[[0,3,0,5]]}
[null,null,null,"Business Intelligence Quick Scan \nBijZuiderduin",null,null,null,null,null,null,null,null,null,null,null,"Pagina volledig ingevuld"]
[null,null,"BI Resultaten ",null,null,null,"Voortgang",{"$f":"6/7","v":0.8571428571428571},null,null,null,null,null,null,null,{"$f":"COUNTIF(P6:P28,0)=0","v":false}]
["categorie",null,"vraag","mogelijke antwoorden",null,null,null,null,null,null,null,"Gewicht","note","waarde","waardering","ingevuld","resultaat","gewogen","regel"]
[]
[null,null,"Voor welke doeleinden wordt BI ingezet","Niet","Zeer beperkt","Matig","Uitgebreid","Onbekend/nvt",null,null,null,{"$f":"SUM(L6:L12)","v":140},null,null,null,null,null,{"$f":"SUM(R6:R12)","v":0}]
[null,null,"Verantwoordings rapportages",null,null,null,null,null,null,null,null,20,null,null,null,0,{"$f":"VLOOKUP(P6,$N$21:$O$26,2,0)","v":{"$error":"#N/A"}},{"$f":"IF(ISERROR(Q6),0,Q6*L6)","v":0}]
[null,null,"Verbeteren besluitvorming",null,null,null,null,null,null,null,null,20,null,null,null,0,{"$error":"#N/A"},{"$f":"IF(ISERROR(Q7),0,Q7*L7)","v":0}]
[null,null,"Verhogen inkomsten/omzet",null,null,null,null,null,null,null,null,20,null,null,null,0,{"$error":"#N/A"},{"$f":"IF(ISERROR(Q8),0,Q8*L8)","v":0}]
[null,null,"Verhogen klanttevredenheid",null,null,null,null,null,null,null,null,20,null,null,null,0,{"$error":"#N/A"},{"$f":"IF(ISERROR(Q9),0,Q9*L9)","v":0}]
[null,null,"Voldoen aan regelgeving ",null,null,null,null,"*",null,null,null,{"$f":"IF(P10=5,0,M10)","v":20},20,null,null,0,{"$error":"#N/A"},0]
[null,null,"Kostenverlaging door proces optimalisatie/automatisering",null,null,null,null,null,null,null,null,20,null,null,null,0,{"$error":"#N/A"},0]
[null,null,"Verbeteren Risk Management / Internal Audit",null,null,null,null,"*",null,null,null,{"$f":"IF(P12=5,0,M12)","v":20},20,null,null,0,{"$error":"#N/A"},0]
[null,null,null,null,null,null,null,"* Als hier 'Onbekend/nvt' wordt ingevuld wordt de score niet meegerekend"]
[null,null,"Welke BI technieken worden toegepast","Niet","Pilots","Bij 1 afdeling","Over meerdere afdelingen","Onbekend/nvt",null,null,null,{"$f":"SUM(L15:L19)","v":160},null,null,null,null,null,{"$f":"SUM(R15:R19)","v":0}]
["Basis",null,"Reporting en Data visualisatie",null,null,null,null,null,null,null,null,30,null,null,null,0,{"$f":"VLOOKUP(P15,$N$21:$O$26,2,0)","v":{"$error":"#N/A"}},{"$f":"IF(ISERROR(Q15),0,Q15*L15)","v":0}]
["Basis",null,"Intelligent Automation",null,null,null,null,"*",null,null,null,{"$f":"IF(P16=5,0,M16)","v":30},30,null,null,0,{"$f":"VLOOKUP(P16,$N$21:$O$26,2,0)","v":{"$error":"#N/A"}},{"$f":"IF(ISERROR(Q16),0,Q16*L16)","v":0},"als nvt dan gewicht 0"]
["Basis",null,"Artificial Intelligence / Machine Learning",null,null,null,null,"*",null,null,null,40,40,null,null,0,{"$f":"VLOOKUP(P17,$N$21:$O$26,2,0)","v":{"$error":"#N/A"}},{"$f":"IF(ISERROR(Q17),0,Q17*L17)","v":0},"als nvt dan gewicht 0"]
["Basis",null,"Virtuele agents of gesproken interfaces",null,null,null,null,"*",null,null,null,30,30,null,null,0,{"$f":"VLOOKUP(P18,$N$21:$O$26,2,0)","v":{"$error":"#N/A"}},0,"als nvt dan gewicht 0"]
["Basis",null,"Natuurlijke taal en/of spraak herkenning",null,null,null,null,"*",null,null,null,30,30,null,null,0,{"$f":"VLOOKUP(P19,$N$21:$O$26,2,0)","v":{"$error":"#N/A"}},0,"als nvt dan gewicht 0"]
[null,null,null,null,null,null,null,"* Als hier 'Onbekend/nvt' wordt ingevuld wordt de score niet meegerekend"]
[null,null,"Wat was de impact van BI op de verschillende afdelingen binnen uw bedrijf? (Denk aan kosten besparingen, toegenomen inkomsten, betere beslissingen.)","Geen impact","Beperkte impact","Hoge impact","Bedrijfs-veranderend","Onbekend/nvt",null,null,null,{"$f":"SUM(L22:L28)","v":130},null,1,1,null,null,{"$f":"SUM(R22:R28)","v":0}]
["Basis",null,"Hele bedrijf",null,null,null,null,null,null,null,null,20,null,2,2,0,{"$f":"VLOOKUP(P22,$N$21:$O$26,2,0)","v":{"$error":"#N/A"}},{"$f":"IF(ISERROR(Q22),0,Q22*L22)","v":0}]
["Basis",null,"HR",null,null,null,null,null,null,null,null,10,null,3,3.5,0,{"$f":"VLOOKUP(P23,$N$21:$O$26,2,0)","v":{"$error":"#N/A"}},0]
["Basis",null,"IT/ Techniek",null,null,null,null,null,null,null,null,20,null,4,5,0,{"$error":"#N/A"},0]
["Basis",null,"Marketing, Sales en Relatiebeheer",null,null,null,null,"*",null,null,null,{"$f":"IF(P25=5,0,M25)","v":20},20,5,1,0,{"$error":"#N/A"},0]
["Basis",null,"Risk en interne auditing",null,null,null,null,"*",null,null,null,10,10,null,null,0,{"$error":"#N/A"},0]
["Basis",null,"Finance",null,null,null,null,null,null,null,null,20,null,null,null,0,{"$error":"#N/A"},0]
["Basis",null,"Inkoop, Productie en Procesverbetering",null,null,null,null,null,null,null,null,30,null,null,null,0,{"$error":"#N/A"},0]
[null,null,null,null,null,null,null,"* Als hier 'Onbekend/nvt' wordt ingevuld wordt de score niet meegerekend"]

{"sheet":"BI Maturity","index":9,"n_rows":38,"n_cols":24,"rows_kept":38,"cut":false,"hidden":true,"merged":[[0,3,0,5]]}
[null,null,null,"Business Intelligence Quick Scan \nBijZuiderduin"]
[null,null,"BI Maturity "]
[]
[]
[null,null,null,null,null,null,null,null,null,null,null,null,null,null,null,null,"score","gewicht","Deelscore","min","max","totale","Ambitie"]
[null,null,null,null,null,null,null,null,null,null,null,null,null,null,"totale",null,{"$f":"SUM(Q7:Q9)","v":0},{"$f":"SUM(R7:R9)","v":1500},{"$f":"Q6/R6","v":0},null,null,{"$f":"$S$6","v":0},{"$f":"$S$10","v":0}]
[null,null,"Voorspellen",null,null,null,null,null,null,null,null,null,null,null,"Organisatie",null,{"$f":"SUM(Q12:Q14)","v":0},{"$f":"SUM(R12:R14)","v":500},{"$f":"Q7/R7","v":0},{"$f":"MIN(S12:S14)","v":0},{"$f":"MAX(S12:S14)-T7","v":0},{"$f":"$S$6","v":0},{"$f":"$S$10","v":0},"Organisatie"]
[null,null,null,null,null,null,null,null,null,null,null,null,null,null,"Data en IT",null,{"$f":"SUM(Q15:Q18)","v":0},{"$f":"SUM(R15:R18)","v":500},{"$f":"Q8/R8","v":0},{"$f":"MIN(S15:S18)","v":0},{"$f":"MAX(S15:S18)-T8","v":0},{"$f":"$S$6","v":0},{"$f":"$S$10","v":0},"Data en IT"]
[null,null,"Analyseren",null,null,null,null,null,null,null,null,null,null,null,"Toepassing",null,{"$f":"SUM(Q19:Q23)","v":0},{"$f":"SUM(R19:R23)","v":500},{"$f":"Q9/R9","v":0},{"$f":"MIN(S19:S23)","v":0},{"$f":"MAX(S19:S23)-T9","v":0},0,0,"Toepassing"]
[null,null,null,null,null,null,null,null,null,null,null,null,null,null,"Ambitie",null,null,null,{"$f":"'BI Organisatie'!R22","v":0}]
[null,null,"Sturing"]
[null,null,null,null,null,null,null,null,null,null,null,null,null,null,"Organisatie","Visie",{"$f":"'BI Organisatie'!R5","v":0},{"$f":"'BI Organisatie'!L5","v":120},{"$f":"Q12/R12","v":0}]
[null,null,"Rapportage",null,null,null,null,null,null,null,null,null,null,null,"Organisatie","Organisatie",{"$f":"'BI Organisatie'!R16","v":0},{"$f":"'BI Organisatie'!L16","v":160},{"$f":"Q13/R13","v":0}]
[null,null,null,null,null,null,null,null,null,null,null,null,null,null,"Organisatie","Expertise",{"$f":"'BI Expertise'!R6","v":0},{"$f":"'BI Expertise'!L6","v":220},{"$f":"Q14/R14","v":0}]
[null,null,"Basis",null,null,null,null,null,null,null,null,null,null,null,"Data en IT","BI Data",{"$f":"'BI Data-IT'!R5","v":0},{"$f":"'BI Data-IT'!L5","v":135},{"$f":"Q15/R15","v":0}]
[null,null,null,null,null,null,null,null,null,null,null,null,null,null,"Data en IT","BI bronnen",{"$f":"'BI Data-IT'!R11","v":0},{"$f":"'BI Data-IT'!L11","v":80},{"$f":"Q16/R16","v":0}]
[null,null,null,null,null,null,null,null,null,null,null,null,null,null,"Data en IT","BI data beheer",{"$f":"'BI Data-IT'!R16","v":0},{"$f":"'BI Data-IT'!L16","v":95},{"$f":"Q17/R17","v":0}]
[null,null,null,null,null,null,null,null,null,null,null,null,null,null,"Data en IT","Governance",{"$f":"'BI Data Governance'!R5","v":0},{"$f":"'BI Data Governance'!L5","v":190},0]
[null,null,null,null,null,null,null,null,null,null,null,null,null,null,"Toepassing","BI gebruik",{"$f":"'BI Gebruik'!R4","v":0},{"$f":"'BI Gebruik'!L4","v":70},{"$f":"Q19/R19","v":0}]
[null,null,null,null,null,null,null,null,null,null,null,null,null,null,"Toepassing","Doeleinden",{"$f":"'BI Resultaten'!R5","v":0},{"$f":"'BI Resultaten'!L5","v":140},0]
[null,null,null,"Gefeliciteerd, u heeft voor uw organisatie de BI/Big data Maturity score bepaald. Onderstaand krijgt u een toelichting hierop.",null,null,null,null,null,null,null,null,null,null,"Toepassing","Resultaten",{"$f":"'BI Resultaten'!R14","v":0},{"$f":"'BI Resultaten'!L14","v":160},0]
[null,null,null,null,null,null,null,null,null,null,null,null,null,null,null,null,null,null,null,null,null,"Om uw ambitie te realiseren is eerst aandacht nodig voor "]
[null,null,null,{"$f":"CONCATENATE(\"Het Overal BI/Big data volwassenheidsniveau van uw organisatie heeft een score van \",TEXT(S6,\"#,0\"),\", dat \",VLOOKUP(S6,Antwoorden!$B$59:$C$67,2,1),\".\")","v":"Het Overal BI/Big data volwassenheidsniveau van uw organisatie heeft een score van ,0, dat noemen we niveau Basis."},null,null,null,null,null,null,null,null,null,null,"Toepassing","Impact",{"$f":"'BI Resultaten'!R21","v":0},{"$f":"'BI Resultaten'!L21","v":130},0,null,null,", dan voor "]
[null,null,null,{"$f":"CONCATENATE(\"- Het BI Organisatie aspect heeft een score van \",TEXT(S7,\"#,0\"),\" en \",VLOOKUP(S7,Antwoorden!$B$59:$C$67,2,1),\". \")","v":"- Het BI Organisatie aspect heeft een score van ,0 en noemen we niveau Basis. "},null,null,null,null,null,null,null,null,null,null,null,null,null,null,null,null,null," en als laatste pas voor "]
[null,null,null,{"$f":"CONCATENATE(\"- Het BI Data en IT aspect heeft een score van \",TEXT(S8,\"#,0\"),\" en \",VLOOKUP(S8,Antwoorden!$B$59:$C$67,2,1),\".\")","v":"- Het BI Data en IT aspect heeft een score van ,0 en noemen we niveau Basis."}]
[null,null,null,{"$f":"CONCATENATE(\"- De Toepassing van BI Organisatie in uw organisatie heeft een score van \",TEXT(S9,\"#,0\"),\" en \",VLOOKUP(S9,Antwoorden!$B$59:$C$67,2,1),\".\")","v":"- De Toepassing van BI Organisatie in uw organisatie heeft een score van ,0 en noemen we niveau Basis."},null,null,null,null,null,null,null,null,null,null,"Versciil met totale","organisatie",{"$f":"S7-V7","v":0},"Organisatorische aspecten",null,null,-9,"veel lager dan de totale score. Dat betekent dat u eerst aandacht moet besteden aan de "," om de BI vaardigheden in balans te krijgen."]
[null,null,null,{"$f":"CONCATENATE(\"Het grootste verschil tussen de deelscores is \",TEXT(Q33,\"0,0\"),\".\",VLOOKUP(Q33,$U$33:$V$35,2,1))","v":"Het grootste verschil tussen de deelscores is 0,0. Dit wijst op een evenwichtige uitrol van BI. Een verdere ontwikkeling van BI kan over de hele linie plaatsvinden."},null,null,null,null,null,null,null,null,null,null,null,"data en IT",{"$f":"S8-V8","v":0},"Data en IT aspecten",null,null,-1.5,"lager dan de totale score. Dat betekent dat er bij de volgende stappen meer aandacht nodig is voor "," dan voor de andere aspecten. "]
[null,null,null,null,null,null,null,null,null,null,null,null,null,null,null,"Toepassing",0,"Toepassingen",null,null,-0.5,"in de buurt van de totale score. De aandacht voor dit aspect is daarmee in balans. "]
[null,null,null,{"$f":"CONCATENATE(\"Het verschil tussen uw huidige situatie en uw ambitie is \",TEXT(S10-S6,\"0,0\"),\" wat \",VLOOKUP(S10-S6,Antwoorden!D59:E62,2,1),\".\")","v":"Het verschil tussen uw huidige situatie en uw ambitie is 0,0 wat weinig ambitieus te noemen is. Neem eens de tijd om na te denken welke mogelijkheden er zijn."},null,null,null,null,null,null,null,null,null,null,null,null,null,null,null,null,0.5,"hoger dan de totale score. Dat betekent dat "," andere aspecten de nadruk moeten krijgen bij het ontwikkelen van de BI vaardigheden. "]
[null,null,null,{"$f":"CONCATENATE(V22,Q32,V23,Q30,V24,Q31,\".\")","v":"Om uw ambitie te realiseren is eerst aandacht nodig voor Organisatie, dan voor Toepassing en als laatste pas voor Organisatie."},null,null,null,null,null,null,null,null,null,null,null,"midden",{"$f":"VLOOKUP(MIN($S$7:$S$9)+0.00001,$S$7:$X$9,6,1)","v":"Toepassing"},null,null,null,1.5,"veel hoger dan de totale score. Dat betekent dat u eerst aandacht moet besteden aan de ontwikkeling van de andere BI aspecten. "]
[null,null,null,{"$f":"IF(Q33>=U34,CONCATENATE(R30,R31,R30,R32),\"\")","v":""},null,null,null,null,null,null,null,null,null,null,null,"hoogste",{"$f":"VLOOKUP(MAX($S$7:$S$9),$S$7:$X$9,6,0)","v":"Organisatie"},{"$f":"CONCATENATE(\"De hoogste deelscore is voor het aspect \",Q31,\". Met een verschil van \",TEXT(VLOOKUP(Q31,$P$26:$Q$28,2,0),\"0,0\"),\" is dat \",VLOOKUP(VLOOKUP(Q31,$P$26:$Q$28,2,0),$U$26:$W$30,2,1),VLOOKUP(VLOOKUP(Q31,$P$26:$Q$28,2,0),$U$26:$W$30,3,1))","v":"De hoogste deelscore is voor het aspect Organisatie. Met een verschil van 0,0 is dat in de buurt van de totale score. De aandacht voor dit aspect is daarmee in balans. "}]
[null,null,null,null,null,null,null,null,null,null,null,null,null,null,null,"laagste",{"$f":"VLOOKUP(MIN($S$7:$S$9),$S$7:$X$9,6,0)","v":"Organisatie"},{"$f":"CONCATENATE(\"De laagste deelscore is voor het aspect \",Q32,\". Met een verschil van \",TEXT(ABS(VLOOKUP(Q32,$P$26:$Q$28,2,0)),\"0,0\"),\" is dat \",VLOOKUP(VLOOKUP(Q32,$P$26:$Q$28,2,0),$U$26:$W$30,2,1),VLOOKUP(Q32,$P$26:$R$28,3,0),VLOOKUP(VLOOKUP(Q32,$P$26:$Q$28,2,0),$U$26:$W$30,3,1))","v":"De laagste deelscore is voor het aspect Organisatie. Met een verschil van 0,0 is dat in de buurt van de totale score. De aandacht voor dit aspect is daarmee in balans. Organisatorische aspecten"}]
[null,null,null,"Als u dit document opslaat en opstuurt naar Bij Zuiderduin (info@BijZuiderduin.nl), dan neem ik geheel vrijblijvend contact met u op om het resultaat te bespreken. Daarin kunnen bijvoorbeeld detailscores worden bekeken om uitschieters te vinden. \nEen mogelijk vervolg op deze eerste stap is het formulier in te laten vullen door meer collega's om de BI perceptie uit een bredere vertegenwoordiging inzichtelijk te maken. Met die kennis is het mogelijk om een gerichte aanpak vast te stellen om de BI ambitie te realiseren.",null,null,null,null,null,null,null,null,null,null,null,"grootste verschil",{"$f":"MAX(Q26:Q28)-MIN(Q26:Q28)","v":0},null,null,null,0," Dit wijst op een evenwichtige uitrol van BI. Een verdere ontwikkeling van BI kan over de hele linie plaatsvinden."]
[null,null,null,null,null,null,null,null,null,null,null,null,null,null,null,null,null,null,null,null,1," Dit wijst op een kleine onbalans in de BI maturity en vraagt om wat extra aandacht bij achtergebleven aspecten."]
[null,null,null,null,null,null,null,null,null,null,null,null,null,null,null,null,null,null,null,null,2," Dit wijst op een forse onbalans in de BI maturity. De achterstand moet weggewerkt worden voordat er op een zinvolle manier gewerkt kan worden aan het verder ontwikkelen van de BI vaardigheden."]
[]
[null,null,null,null,null,null,null,null,null,null,null,null,null,null,null,"Attentie"]
[null,null,null,null,null,null,null,null,null,null,null,null,null,null,"AVG warning",{"$f":"IF('BI Data-IT'!R7=MAX(Antwoorden!D4:D9),\"Let op: de data voor de AVG moet na eenbepaalde termijn geschoond worden!)\",\"\")","v":""}]

{"sheet":"scores","index":10,"n_rows":59,"n_cols":8,"rows_kept":59,"cut":false,"hidden":true,"merged":[]}
["Naam organisatie","Ingevuld door","Aspect","Deelaspect","vraag","gewicht","score","ambitie"]
[{"$f":"Algemeen!$D$7","v":0},{"$f":"Algemeen!$D$10","v":0},{"$f":"'BI Organisatie'!$C$2","v":"BI Organisatie "},{"$f":"'BI Organisatie'!$C$5","v":"BI Visie"},{"$f":"'BI Organisatie'!C6","v":"Hoe worden BI activiteiten geinitieerd?"},{"$f":"'BI Organisatie'!L6","v":40},{"$f":"'BI Organisatie'!R6","v":0},{"$f":"$G$9","v":0}]
[{"$f":"Algemeen!$D$7","v":0},{"$f":"Algemeen!$D$10","v":0},{"$f":"'BI Organisatie'!$C$2","v":"BI Organisatie "},{"$f":"'BI Organisatie'!$C$5","v":"BI Visie"},{"$f":"'BI Organisatie'!C7","v":"Hoe worden  BI ideeën opgepakt?"},{"$f":"'BI Organisatie'!L7","v":40},{"$f":"'BI Organisatie'!R7","v":0},0]
[{"$f":"Algemeen!$D$7","v":0},{"$f":"Algemeen!$D$10","v":0},{"$f":"'BI Organisatie'!$C$2","v":"BI Organisatie "},{"$f":"'BI Organisatie'!$C$5","v":"BI Visie"},{"$f":"'BI Organisatie'!C9","v":"Wat is geldig voor de BI visie?"},{"$f":"'BI Organisatie'!L9","v":40},{"$f":"'BI Organisatie'!R9","v":0},0]
[{"$f":"Algemeen!$D$7","v":0},{"$f":"Algemeen!$D$10","v":0},{"$f":"'BI Organisatie'!$C$2","v":"BI Organisatie "},{"$f":"'BI Organisatie'!$C$16","v":"Organisatie"},{"$f":"'BI Organisatie'!C17","v":"Wie is eindverantwoordelijk voor BI?"},{"$f":"'BI Organisatie'!L17","v":40},{"$f":"'BI Organisatie'!R17","v":0},0]
[{"$f":"Algemeen!$D$7","v":0},{"$f":"Algemeen!$D$10","v":0},{"$f":"'BI Organisatie'!$C$2","v":"BI Organisatie "},{"$f":"'BI Organisatie'!$C$16","v":"Organisatie"},{"$f":"'BI Organisatie'!C18","v":"Wie maken er gebruik van BI data?"},{"$f":"'BI Organisatie'!L18","v":40},{"$f":"'BI Organisatie'!R18","v":0},0]
[{"$f":"Algemeen!$D$7","v":0},{"$f":"Algemeen!$D$10","v":0},{"$f":"'BI Organisatie'!$C$2","v":"BI Organisatie "},{"$f":"'BI Organisatie'!$C$16","v":"Organisatie"},{"$f":"'BI Organisatie'!C19","v":"Hoe zijn BI werkzaamheden georganiseerd?"},{"$f":"'BI Organisatie'!L19","v":40},{"$f":"'BI Organisatie'!R19","v":0},0]
[{"$f":"Algemeen!$D$7","v":0},{"$f":"Algemeen!$D$10","v":0},{"$f":"'BI Organisatie'!$C$2","v":"BI Organisatie "},{"$f":"'BI Organisatie'!$C$16","v":"Organisatie"},{"$f":"'BI Organisatie'!C20","v":"Wat is het niveau van BI kennis en cultuur?"},{"$f":"'BI Organisatie'!L20","v":40},{"$f":"'BI Organisatie'!R20","v":0},0]
[{"$f":"Algemeen!$D$7","v":0},{"$f":"Algemeen!$D$10","v":0},"Ambitie","Ambitie",{"$f":"'BI Organisatie'!C22","v":"Wat is uw ambitie over 1-2 jaar"},0,{"$f":"'BI Organisatie'!R22","v":0},0]
[{"$f":"Algemeen!$D$7","v":0},{"$f":"Algemeen!$D$10","v":0},{"$f":"'BI Organisatie'!$C$2","v":"BI Organisatie "},"BI Expertise","BI Data integratie en ontsluiting",{"$f":"'BI Expertise'!L7","v":40},{"$f":"'BI Expertise'!R7","v":0},0]
[{"$f":"Algemeen!$D$7","v":0},{"$f":"Algemeen!$D$10","v":0},{"$f":"'BI Organisatie'!$C$2","v":"BI Organisatie "},"BI Expertise","Rapportage en visualisatie",{"$f":"'BI Expertise'!L8","v":30},{"$f":"'BI Expertise'!R8","v":0},0]
[{"$f":"Algemeen!$D$7","v":0},{"$f":"Algemeen!$D$10","v":0},{"$f":"'BI Organisatie'!$C$2","v":"BI Organisatie "},"BI Expertise","Combinatie BI en Bedrijfsproces kennis",{"$f":"'BI Expertise'!L9","v":40},{"$f":"'BI Expertise'!R9","v":0},0]
[{"$f":"Algemeen!$D$7","v":0},{"$f":"Algemeen!$D$10","v":0},{"$f":"'BI Organisatie'!$C$2","v":"BI Organisatie "},"BI Expertise","Data Science",{"$f":"'BI Expertise'!L10","v":60},{"$f":"'BI Expertise'!R10","v":0},0]
[{"$f":"Algemeen!$D$7","v":0},{"$f":"Algemeen!$D$10","v":0},{"$f":"'BI Organisatie'!$C$2","v":"BI Organisatie "},"BI Expertise","Ad hoc data analyse",{"$f":"'BI Expertise'!L11","v":50},{"$f":"'BI Expertise'!R11","v":0},0]
[{"$f":"Algemeen!$D$7","v":0},{"$f":"Algemeen!$D$10","v":0},{"$f":"'BI Data-IT'!$C$2","v":"BI Data-IT "},{"$f":"'BI Data-IT'!$C$5","v":"BI data"},{"$f":"'BI Data-IT'!C6","v":"Hoe wordt data voor BI gebruik ontsloten?"},{"$f":"'BI Data-IT'!L6","v":60},{"$f":"'BI Data-IT'!R6","v":0},0]
[{"$f":"Algemeen!$D$7","v":0},{"$f":"Algemeen!$D$10","v":0},{"$f":"'BI Data-IT'!$C$2","v":"BI Data-IT "},{"$f":"'BI Data-IT'!$C$5","v":"BI data"},{"$f":"'BI Data-IT'!C7","v":"Hoeveel historie is in de BI data beschikbaar?"},{"$f":"'BI Data-IT'!L7","v":25},{"$f":"'BI Data-IT'!R7","v":0},0]
[{"$f":"Algemeen!$D$7","v":0},{"$f":"Algemeen!$D$10","v":0},{"$f":"'BI Data-IT'!$C$2","v":"BI Data-IT "},{"$f":"'BI Data-IT'!$C$5","v":"BI data"},{"$f":"'BI Data-IT'!C8","v":"Hoe vaak wordt de BI data bijgewerkt?"},{"$f":"'BI Data-IT'!L8","v":25},{"$f":"'BI Data-IT'!R8","v":0},0]
[{"$f":"Algemeen!$D$7","v":0},{"$f":"Algemeen!$D$10","v":0},{"$f":"'BI Data-IT'!$C$2","v":"BI Data-IT "},{"$f":"'BI Data-IT'!$C$5","v":"BI data"},{"$f":"'BI Data-IT'!C9","v":"Wat is het detailniveau van de BI data?"},{"$f":"'BI Data-IT'!L9","v":25},{"$f":"'BI Data-IT'!R9","v":0},0]
[{"$f":"Algemeen!$D$7","v":0},{"$f":"Algemeen!$D$10","v":0},{"$f":"'BI Data-IT'!$C$2","v":"BI Data-IT "},{"$f":"'BI Data-IT'!$C$11","v":"BI data bronnen"},{"$f":"'BI Data-IT'!C12","v":"Uit hoeveel bedrijfsbronnen is data beschikbaar?"},{"$f":"'BI Data-IT'!L12","v":25},{"$f":"'BI Data-IT'!R12","v":0},0]
[{"$f":"Algemeen!$D$7","v":0},{"$f":"Algemeen!$D$10","v":0},{"$f":"'BI Data-IT'!$C$2","v":"BI Data-IT "},{"$f":"'BI Data-IT'!$C$11","v":"BI data bronnen"},{"$f":"'BI Data-IT'!C13","v":"Hoe wordt data uit externe databronnen ontsloten?"},{"$f":"'BI Data-IT'!L13","v":25},{"$f":"'BI Data-IT'!R13","v":0},0]
[{"$f":"Algemeen!$D$7","v":0},{"$f":"Algemeen!$D$10","v":0},{"$f":"'BI Data-IT'!$C$2","v":"BI Data-IT "},{"$f":"'BI Data-IT'!$C$11","v":"BI data bronnen"},{"$f":"'BI Data-IT'!C14","v":"Hoe snel kan een verzoek, om gecombineerde data uit meerdere basis systemen te leveren, worden gerealiseerd?"},{"$f":"'BI Data-IT'!L14","v":30},{"$f":"'BI Data-IT'!R14","v":0},0]
[{"$f":"Algemeen!$D$7","v":0},{"$f":"Algemeen!$D$10","v":0},{"$f":"'BI Data-IT'!$C$2","v":"BI Data-IT "},{"$f":"'BI Data-IT'!$C$16","v":"BI data Beheer"},{"$f":"'BI Data-IT'!C17","v":"Hoe vaak zijn er incidenten in de verwerking?"},{"$f":"'BI Data-IT'!L17","v":20},{"$f":"'BI Data-IT'!R17","v":0},0]
[{"$f":"Algemeen!$D$7","v":0},{"$f":"Algemeen!$D$10","v":0},{"$f":"'BI Data-IT'!$C$2","v":"BI Data-IT "},{"$f":"'BI Data-IT'!$C$16","v":"BI data Beheer"},{"$f":"'BI Data-IT'!C18","v":"Hoe snel kunnen wijzigingen in de datastromen verwerkt worden?"},{"$f":"'BI Data-IT'!L18","v":20},{"$f":"'BI Data-IT'!R18","v":0},0]
[{"$f":"Algemeen!$D$7","v":0},{"$f":"Algemeen!$D$10","v":0},{"$f":"'BI Data-IT'!$C$2","v":"BI Data-IT "},{"$f":"'BI Data-IT'!$C$16","v":"BI data Beheer"},{"$f":"'BI Data-IT'!C19","v":"Hoe snel kunnen BI analyse resultaten in de praktijk worden toegepast (bv. bij klantcontacten)?"},{"$f":"'BI Data-IT'!L19","v":30},{"$f":"'BI Data-IT'!R19","v":0},0]
[{"$f":"Algemeen!$D$7","v":0},{"$f":"Algemeen!$D$10","v":0},{"$f":"'BI Data-IT'!$C$2","v":"BI Data-IT "},{"$f":"'BI Data-IT'!$C$16","v":"BI data Beheer"},{"$f":"'BI Data-IT'!C20","v":"Voldoet de huidige informatievoorziening?"},{"$f":"'BI Data-IT'!L20","v":25},{"$f":"'BI Data-IT'!R20","v":0},0]
[{"$f":"Algemeen!$D$7","v":0},{"$f":"Algemeen!$D$10","v":0},{"$f":"'BI Data-IT'!$C$2","v":"BI Data-IT "},{"$f":"'BI Data Governance'!$C$5","v":"Data Governance implementatie"},{"$f":"'BI Data Governance'!C6","v":"Data Governance (algemeen)"},{"$f":"'BI Data Governance'!L6","v":20},{"$f":"'BI Data Governance'!R6","v":0},0]
[{"$f":"Algemeen!$D$7","v":0},{"$f":"Algemeen!$D$10","v":0},{"$f":"'BI Data-IT'!$C$2","v":"BI Data-IT "},{"$f":"'BI Data Governance'!$C$5","v":"Data Governance implementatie"},{"$f":"'BI Data Governance'!C7","v":"Data architectuur"},{"$f":"'BI Data Governance'!L7","v":15},{"$f":"'BI Data Governance'!R7","v":0},0]
[{"$f":"Algemeen!$D$7","v":0},{"$f":"Algemeen!$D$10","v":0},{"$f":"'BI Data-IT'!$C$2","v":"BI Data-IT "},{"$f":"'BI Data Governance'!$C$5","v":"Data Governance implementatie"},{"$f":"'BI Data Governance'!C8","v":"Meta Data Beheer"},{"$f":"'BI Data Governance'!L8","v":20},{"$f":"'BI Data Governance'!R8","v":0},0]
[{"$f":"Algemeen!$D$7","v":0},{"$f":"Algemeen!$D$10","v":0},{"$f":"'BI Data-IT'!$C$2","v":"BI Data-IT "},{"$f":"'BI Data Governance'!$C$5","v":"Data Governance implementatie"},{"$f":"'BI Data Governance'!C9","v":"Data Quality"},{"$f":"'BI Data Governance'!L9","v":20},{"$f":"'BI Data Governance'!R9","v":0},0]
[{"$f":"Algemeen!$D$7","v":0},{"$f":"Algemeen!$D$10","v":0},{"$f":"'BI Data-IT'!$C$2","v":"BI Data-IT "},{"$f":"'BI Data Governance'!$C$5","v":"Data Governance implementatie"},{"$f":"'BI Data Governance'!C10","v":"Data opslag en Operationeel Beheer"},{"$f":"'BI Data Governance'!L10","v":10},{"$f":"'BI Data Governance'!R10","v":0},0]
[{"$f":"Algemeen!$D$7","v":0},{"$f":"Algemeen!$D$10","v":0},{"$f":"'BI Data-IT'!$C$2","v":"BI Data-IT "},{"$f":"'BI Data Governance'!$C$5","v":"Data Governance implementatie"},{"$f":"'BI Data Governance'!C11","v":"Data Beveiliging"},{"$f":"'BI Data Governance'!L11","v":25},{"$f":"'BI Data Governance'!R11","v":0},0]
[{"$f":"Algemeen!$D$7","v":0},{"$f":"Algemeen!$D$10","v":0},{"$f":"'BI Data-IT'!$C$2","v":"BI Data-IT "},{"$f":"'BI Data Governance'!$C$5","v":"Data Governance implementatie"},{"$f":"'BI Data Governance'!C12","v":"Data   gebruik ethiek"},{"$f":"'BI Data Governance'!L12","v":25},{"$f":"'BI Data Governance'!R12","v":0},0]
[{"$f":"Algemeen!$D$7","v":0},{"$f":"Algemeen!$D$10","v":0},{"$f":"'BI Data-IT'!$C$2","v":"BI Data-IT "},{"$f":"'BI Data Governance'!$C$5","v":"Data Governance implementatie"},{"$f":"'BI Data Governance'!C13","v":"Master Data Management"},{"$f":"'BI Data Governance'!L13","v":15},{"$f":"'BI Data Governance'!R13","v":0},0]
[{"$f":"Algemeen!$D$7","v":0},{"$f":"Algemeen!$D$10","v":0},{"$f":"'BI Data-IT'!$C$2","v":"BI Data-IT "},{"$f":"'BI Data Governance'!$C$5","v":"Data Governance implementatie"},{"$f":"'BI Data Governance'!C14","v":"BI Data modeleren en ontwerp"},{"$f":"'BI Data Governance'!L14","v":15},{"$f":"'BI Data Governance'!R14","v":0},{"$f":"$G$9","v":0}]
[{"$f":"Algemeen!$D$7","v":0},{"$f":"Algemeen!$D$10","v":0},{"$f":"'BI Data-IT'!$C$2","v":"BI Data-IT "},{"$f":"'BI Data Governance'!$C$5","v":"Data Governance implementatie"},{"$f":"'BI Data Governance'!C15","v":"Data Warehouse & BI"},{"$f":"'BI Data Governance'!L15","v":10},{"$f":"'BI Data Governance'!R15","v":0},0]
[{"$f":"Algemeen!$D$7","v":0},{"$f":"Algemeen!$D$10","v":0},{"$f":"'BI Data-IT'!$C$2","v":"BI Data-IT "},{"$f":"'BI Data Governance'!$C$5","v":"Data Governance implementatie"},{"$f":"'BI Data Governance'!C16","v":"Document & Content Management"},{"$f":"'BI Data Governance'!L16","v":15},{"$f":"'BI Data Governance'!R16","v":0},0]
[{"$f":"Algemeen!$D$7","v":0},{"$f":"Algemeen!$D$10","v":0},{"$f":"'BI Gebruik'!$C$2","v":"BI Gebruik "},{"$f":"'BI Gebruik'!$C$5","v":"Hoe wordt BI data in uw organisatie gebruikt?"},{"$f":"'BI Gebruik'!C6","v":"Hoe kunnen eindgebruikers informatie uit gecombineerde bronnen benaderen?"},{"$f":"'BI Gebruik'!L6","v":10},{"$f":"'BI Gebruik'!R6","v":0},0]
[{"$f":"Algemeen!$D$7","v":0},{"$f":"Algemeen!$D$10","v":0},{"$f":"'BI Gebruik'!$C$2","v":"BI Gebruik "},{"$f":"'BI Gebruik'!$C$5","v":"Hoe wordt BI data in uw organisatie gebruikt?"},{"$f":"'BI Gebruik'!C7","v":"Rapporteert de organisatie over BI KPI's?"},{"$f":"'BI Gebruik'!L7","v":20},{"$f":"'BI Gebruik'!R7","v":0},0]
[{"$f":"Algemeen!$D$7","v":0},{"$f":"Algemeen!$D$10","v":0},{"$f":"'BI Gebruik'!$C$2","v":"BI Gebruik "},{"$f":"'BI Gebruik'!$C$5","v":"Hoe wordt BI data in uw organisatie gebruikt?"},{"$f":"'BI Gebruik'!C8","v":"Hoe wordt BI data gezien?"},{"$f":"'BI Gebruik'!L8","v":20},{"$f":"'BI Gebruik'!R8","v":0},0]
[{"$f":"Algemeen!$D$7","v":0},{"$f":"Algemeen!$D$10","v":0},{"$f":"'BI Gebruik'!$C$2","v":"BI Gebruik "},{"$f":"'BI Gebruik'!$C$5","v":"Hoe wordt BI data in uw organisatie gebruikt?"},{"$f":"'BI Gebruik'!C9","v":"Wat wordt er met BI analyse resultaten gedaan?"},{"$f":"'BI Gebruik'!L9","v":20},{"$f":"'BI Gebruik'!R9","v":0},0]
[{"$f":"Algemeen!$D$7","v":0},{"$f":"Algemeen!$D$10","v":0},{"$f":"'BI Gebruik'!$C$2","v":"BI Gebruik "},{"$f":"'BI Resultaten'!$C$5","v":"Voor welke doeleinden wordt BI ingezet"},{"$f":"'BI Resultaten'!C6","v":"Verantwoordings rapportages"},{"$f":"'BI Resultaten'!L6","v":20},{"$f":"'BI Resultaten'!R6","v":0},0]
[{"$f":"Algemeen!$D$7","v":0},{"$f":"Algemeen!$D$10","v":0},{"$f":"'BI Gebruik'!$C$2","v":"BI Gebruik "},{"$f":"'BI Resultaten'!$C$5","v":"Voor welke doeleinden wordt BI ingezet"},{"$f":"'BI Resultaten'!C7","v":"Verbeteren besluitvorming"},{"$f":"'BI Resultaten'!L7","v":20},{"$f":"'BI Resultaten'!R7","v":0},0]
[{"$f":"Algemeen!$D$7","v":0},{"$f":"Algemeen!$D$10","v":0},{"$f":"'BI Gebruik'!$C$2","v":"BI Gebruik "},{"$f":"'BI Resultaten'!$C$5","v":"Voor welke doeleinden wordt BI ingezet"},{"$f":"'BI Resultaten'!C8","v":"Verhogen inkomsten/omzet"},{"$f":"'BI Resultaten'!L8","v":20},{"$f":"'BI Resultaten'!R8","v":0},0]
[{"$f":"Algemeen!$D$7","v":0},{"$f":"Algemeen!$D$10","v":0},{"$f":"'BI Gebruik'!$C$2","v":"BI Gebruik "},{"$f":"'BI Resultaten'!$C$5","v":"Voor welke doeleinden wordt BI ingezet"},{"$f":"'BI Resultaten'!C9","v":"Verhogen klanttevredenheid"},{"$f":"'BI Resultaten'!L9","v":20},{"$f":"'BI Resultaten'!R9","v":0},0]
[{"$f":"Algemeen!$D$7","v":0},{"$f":"Algemeen!$D$10","v":0},{"$f":"'BI Gebruik'!$C$2","v":"BI Gebruik "},{"$f":"'BI Resultaten'!$C$5","v":"Voor welke doeleinden wordt BI ingezet"},{"$f":"'BI Resultaten'!C10","v":"Voldoen aan regelgeving "},{"$f":"'BI Resultaten'!L10","v":20},{"$f":"'BI Resultaten'!R10","v":0},0]
[{"$f":"Algemeen!$D$7","v":0},{"$f":"Algemeen!$D$10","v":0},{"$f":"'BI Gebruik'!$C$2","v":"BI Gebruik "},{"$f":"'BI Resultaten'!$C$5","v":"Voor welke doeleinden wordt BI ingezet"},{"$f":"'BI Resultaten'!C11","v":"Kostenverlaging door proces optimalisatie/automatisering"},{"$f":"'BI Resultaten'!L11","v":20},{"$f":"'BI Resultaten'!R11","v":0},0]
[{"$f":"Algemeen!$D$7","v":0},{"$f":"Algemeen!$D$10","v":0},{"$f":"'BI Gebruik'!$C$2","v":"BI Gebruik "},{"$f":"'BI Resultaten'!$C$5","v":"Voor welke doeleinden wordt BI ingezet"},{"$f":"'BI Resultaten'!C12","v":"Verbeteren Risk Management / Internal Audit"},{"$f":"'BI Resultaten'!L12","v":20},{"$f":"'BI Resultaten'!R12","v":0},0]
[{"$f":"Algemeen!$D$7","v":0},{"$f":"Algemeen!$D$10","v":0},{"$f":"'BI Gebruik'!$C$2","v":"BI Gebruik "},{"$f":"'BI Resultaten'!$C$14","v":"Welke BI technieken worden toegepast"},{"$f":"'BI Resultaten'!C15","v":"Reporting en Data visualisatie"},{"$f":"'BI Resultaten'!L15","v":30},{"$f":"'BI Resultaten'!R15","v":0},0]
[{"$f":"Algemeen!$D$7","v":0},{"$f":"Algemeen!$D$10","v":0},{"$f":"'BI Gebruik'!$C$2","v":"BI Gebruik "},{"$f":"'BI Resultaten'!$C$14","v":"Welke BI technieken worden toegepast"},{"$f":"'BI Resultaten'!C16","v":"Intelligent Automation"},{"$f":"'BI Resultaten'!L16","v":30},{"$f":"'BI Resultaten'!R16","v":0},0]
[{"$f":"Algemeen!$D$7","v":0},{"$f":"Algemeen!$D$10","v":0},{"$f":"'BI Gebruik'!$C$2","v":"BI Gebruik "},{"$f":"'BI Resultaten'!$C$14","v":"Welke BI technieken worden toegepast"},{"$f":"'BI Resultaten'!C17","v":"Artificial Intelligence / Machine Learning"},{"$f":"'BI Resultaten'!L17","v":40},{"$f":"'BI Resultaten'!R17","v":0},0]
[{"$f":"Algemeen!$D$7","v":0},{"$f":"Algemeen!$D$10","v":0},{"$f":"'BI Gebruik'!$C$2","v":"BI Gebruik "},{"$f":"'BI Resultaten'!$C$14","v":"Welke BI technieken worden toegepast"},{"$f":"'BI Resultaten'!C18","v":"Virtuele agents of gesproken interfaces"},{"$f":"'BI Resultaten'!L18","v":30},{"$f":"'BI Resultaten'!R18","v":0},0]
[{"$f":"Algemeen!$D$7","v":0},{"$f":"Algemeen!$D$10","v":0},{"$f":"'BI Gebruik'!$C$2","v":"BI Gebruik "},{"$f":"'BI Resultaten'!$C$14","v":"Welke BI technieken worden toegepast"},{"$f":"'BI Resultaten'!C19","v":"Natuurlijke taal en/of spraak herkenning"},{"$f":"'BI Resultaten'!L19","v":30},{"$f":"'BI Resultaten'!R19","v":0},0]
[{"$f":"Algemeen!$D$7","v":0},{"$f":"Algemeen!$D$10","v":0},{"$f":"'BI Gebruik'!$C$2","v":"BI Gebruik "},"Impact",{"$f":"'BI Resultaten'!C22","v":"Hele bedrijf"},{"$f":"'BI Resultaten'!L22","v":20},{"$f":"'BI Resultaten'!R22","v":0},0]
[{"$f":"Algemeen!$D$7","v":0},{"$f":"Algemeen!$D$10","v":0},{"$f":"'BI Gebruik'!$C$2","v":"BI Gebruik "},"Impact",{"$f":"'BI Resultaten'!C23","v":"HR"},{"$f":"'BI Resultaten'!L23","v":10},{"$f":"'BI Resultaten'!R23","v":0},0]
[{"$f":"Algemeen!$D$7","v":0},{"$f":"Algemeen!$D$10","v":0},{"$f":"'BI Gebruik'!$C$2","v":"BI Gebruik "},"Impact",{"$f":"'BI Resultaten'!C24","v":"IT/ Techniek"},{"$f":"'BI Resultaten'!L24","v":20},{"$f":"'BI Resultaten'!R24","v":0},0]
[{"$f":"Algemeen!$D$7","v":0},{"$f":"Algemeen!$D$10","v":0},{"$f":"'BI Gebruik'!$C$2","v":"BI Gebruik "},"Impact",{"$f":"'BI Resultaten'!C25","v":"Marketing, Sales en Relatiebeheer"},{"$f":"'BI Resultaten'!L25","v":20},{"$f":"'BI Resultaten'!R25","v":0},0]
[{"$f":"Algemeen!$D$7","v":0},{"$f":"Algemeen!$D$10","v":0},{"$f":"'BI Gebruik'!$C$2","v":"BI Gebruik "},"Impact",{"$f":"'BI Resultaten'!C26","v":"Risk en interne auditing"},{"$f":"'BI Resultaten'!L26","v":10},{"$f":"'BI Resultaten'!R26","v":0},0]
[{"$f":"Algemeen!$D$7","v":0},{"$f":"Algemeen!$D$10","v":0},{"$f":"'BI Gebruik'!$C$2","v":"BI Gebruik "},"Impact",{"$f":"'BI Resultaten'!C27","v":"Finance"},{"$f":"'BI Resultaten'!L27","v":20},{"$f":"'BI Resultaten'!R27","v":0},0]
[{"$f":"Algemeen!$D$7","v":0},{"$f":"Algemeen!$D$10","v":0},{"$f":"'BI Gebruik'!$C$2","v":"BI Gebruik "},"Impact",{"$f":"'BI Resultaten'!C28","v":"Inkoop, Productie en Procesverbetering"},{"$f":"'BI Resultaten'!L28","v":30},{"$f":"'BI Resultaten'!R28","v":0},0]

{"sheet":"Grafisch","index":11,"n_rows":79,"n_cols":5,"rows_kept":79,"cut":false,"hidden":true,"merged":[]}
[null,null,"Rijlabels","Som van ambitie","Som van gewogen score"]
[null,null,"BI Data-IT ",0,0]
[null,null,"BI data",0,0]
[null,null,"Hoe wordt data voor BI gebruik ontsloten?",0,0]
[null,null,"Hoeveel historie is in de BI data beschikbaar?",0,0]
[null,null,"Hoe vaak wordt de BI data bijgewerkt?",0,0]
[null,null,"Wat is het detailniveau van de BI data?",0,0]
[null,null,"BI data Beheer",0,0]
[null,null,"Hoe vaak zijn er incidenten in de verwerking?",0,0]
[null,null,"Hoe snel kunnen wijzigingen in de datastromen verwerkt worden?",0,0]
[null,null,"Hoe snel kunnen BI analyse resultaten in de praktijk worden toegepast (bv. bij klantcontacten)?",0,0]
[null,null,"Voldoet de huidige informatievoorziening?",0,0]
[null,null,"BI data bronnen",0,0]
[null,null,"Uit hoeveel bedrijfsbronnen is data beschikbaar?",0,0]
[null,null,"Hoe wordt data uit externe databronnen ontsloten?",0,0]
[null,null,"Hoe snel kan een verzoek, om gecombineerde data uit meerdere basis systemen te leveren, worden gerealiseerd?",0,0]
[null,null,"Data Governance implementatie",0,0]
[null,null,"Data architectuur",0,0]
[null,null,"Data Beveiliging",0,0]
[null,null,"Data Governance (algemeen)",0,0]
[null,null,"Data Quality",0,0]
[null,null,"Document & Content Management",0,0]
[null,null,"Master Data Management",0,0]
[null,null,"Meta Data Beheer",0,0]
[null,null,"Data opslag en Operationeel Beheer",0,0]
[null,null,"Data   gebruik ethiek",0,0]
[null,null,"BI Data modeleren en ontwerp",0,0]
[null,null,"Data Warehouse & BI",0,0]
[null,null,"BI Gebruik ",0,0]
[null,null,"Hoe wordt BI data in uw organisatie gebruikt?",0,0]
[null,null,"Rapporteert de organisatie over BI KPI's?",0,0]
[null,null,"Hoe kunnen eindgebruikers informatie uit gecombineerde bronnen benaderen?",0,0]
[null,null,"Hoe wordt BI data gezien?",0,0]
[null,null,"Wat wordt er met BI analyse resultaten gedaan?",0,0]
[null,null,"Impact",0,0]
[null,null,"Finance",0,0]
[null,null,"Hele bedrijf",0,0]
[null,null,"HR",0,0]
[null,null,"Inkoop, Productie en Procesverbetering",0,0]
[null,null,"IT/ Techniek",0,0]
[null,null,"Marketing, Sales en Relatiebeheer",0,0]
[null,null,"Risk en interne auditing",0,0]
[null,null,"Voor welke doeleinden wordt BI ingezet",0,0]
[null,null,"Kostenverlaging door proces optimalisatie/automatisering",0,0]
[null,null,"Verantwoordings rapportages",0,0]
[null,null,"Verbeteren besluitvorming",0,0]
[null,null,"Verbeteren Risk Management / Internal Audit",0,0]
[null,null,"Verhogen inkomsten/omzet",0,0]
[null,null,"Verhogen klanttevredenheid",0,0]
[null,null,"Voldoen aan regelgeving ",0,0]
[null,null,"Welke BI technieken worden toegepast",0,0]
[null,null,"Artificial Intelligence / Machine Learning",0,0]
[null,null,"Natuurlijke taal en/of spraak herkenning",0,0]
[null,null,"Reporting en Data visualisatie",0,0]
[null,null,"Virtuele agents of gesproken interfaces",0,0]
[null,null,"Intelligent Automation",0,0]
[null,null,"BI Organisatie ",0,0]
[null,null,"BI Expertise",0,0]
[null,null,"Ad hoc data analyse",0,0]
[null,null,"BI Data integratie en ontsluiting",0,0]
[null,null,"Combinatie BI en Bedrijfsproces kennis",0,0]
[null,null,"Data Science",0,0]
[null,null,"Rapportage en visualisatie",0,0]
[null,null,"BI Visie",0,0]
[null,null,"Hoe worden  BI ideeën opgepakt?",0,0]
[null,null,"Hoe worden BI activiteiten geinitieerd?",0,0]
[null,null,"Wat is geldig voor de BI visie?",0,0]
[null,null,"Organisatie",0,0]
[null,null,"Wat is het niveau van BI kennis en cultuur?",0,0]
[null,null,"Wie is eindverantwoordelijk voor BI?",0,0]
[null,null,"Wie maken er gebruik van BI data?",0,0]
[null,null,"Hoe zijn BI werkzaamheden georganiseerd?",0,0]
[null,null,"Ambitie",0,{"$error":"#DIV/0!"}]
[null,null,"Ambitie",0,{"$error":"#DIV/0!"}]
[null,null,"Wat is uw ambitie over 1-2 jaar",0,{"$error":"#DIV/0!"}]
[null,null,"(leeg)",null,{"$error":"#DIV/0!"}]
[null,null,"(leeg)",null,{"$error":"#DIV/0!"}]
[null,null,"(leeg)",null,{"$error":"#DIV/0!"}]
[null,null,"Eindtotaal",0,0]

{"sheet":"Antwoorden","index":12,"n_rows":67,"n_cols":22,"rows_kept":67,"cut":false,"hidden":true,"merged":[]}
["Data vragen"]
["Hoe wordt data voor BI gebruik ontsloten",null,"Hoeveel historie is in de BI data beschikbaar",null,"Hoe vaak wordt de BI data bijgewerkt",null,"Wat is het detailniveau van de BI data",null,"Uit hoeveel bedrijfsbronnen is data beschikbaar",null,"Hoe wordt data uit externe databronnen ontsloten",null,"Hoe snel kan een verzoek, om gecombineerde data uit meerdere basis systemen te leveren, worden gerealiseerd?",null,"Hoe vaak zijn er incidenten in de verwerking",null,"Hoe snel kunnen wijzigingen in de datastromen verwerkt worden",null,"Voldoet de huidige informatievoorziening",null,"Hoe snel kunnen BI analyse resultaten in de praktijk worden toegepast (bv. bij klantcontacten)"]
[]
["Data wordt niet ontsloten",1,"Geen",1,"Real time",5,"Geen BI data",1,"0-10%",1,"We gebruiken geen externe data",1,"<1 dag",5,"(Bijna) nooit",5,"1 dag",5,"0-10% van de vragen",1,"We passen geen BI resultaten toe",1]
["Op ad hoc basis",1.25,"Minstens 1 maand",2,"Minstens iedere 4 uur",4,"Enkele kenmerken geaggregeerd",1.5,"10-25%",2,"Externe data wordt op ad hoc basis gebruikt",3,"1 dag",4,"Enkele keren per jaar kleine incidenten",4,"< 1 week",4,"10-25% van de vragen",2,"Na de analyse wordt gekeken hoe dit geïmplementeerd kan worden",2]
["Direct uit de bron naar een bestand/rapportage",1.5,"Minstens 1 jaar",3,"Minstens iedere dag",3,"Enkele kenmerken in detail",2,"25-40%",3,"Externe data wordt actief gezocht en aangekocht",4,"1 week",3,"Enkele keren per jaar grote incidenten",3,"< 2 weken",3,"25-40% van de vragen",3,"Tijdens de analyse wordt nagedacht hoe resultaten in de praktijk toegepast kunnen worden",3]
["Direct uit meerdere bronnen naar meerdere rapportages",2,"Minstens 5 jaar",4.5,"Minstens iedere week",2,"(Bijna) alle kenmerken geaggregeerd en deel in detail",3,"40-70%",4,"Externe data wordt actief gebruikt",5,"2 weken",2.5,"Enkele keren per maand kleine incidenten",2,"< 1 maand",2,"40-70% van de vragen",4,"Analyse resultaten worden op een standaard manier bruikbaar gemaakt voor praktijk toepassing",4]
["Via een lokaal DWH",3,"Volledige historie",5,"Minstens iedere maand",1.5,"Alle kenmerken op laagste detailniveau",5,"70-100%",5,"Onbekend",1,"1 maand",2,"Wekelijks kleine en grote incidenten",1,"langer",1,"80-100% van de vragen",5,"Analyse resultaten kunnen dezelfde dag in de praktijk worden toegepast",5]
["Via een enterprise DWH of meerdere lokale DWH's",4,null,null,"Op ad hoc basis",1,null,null,null,null,null,null,"meer",1]
["Via een combinatie DWH en data lake",5]
[]
[]
["BI Toepassing vragen"]
["Hoe kunnen eindgebruikers informatie uit gecombineerde bronnen benaderen",null,"Rapporteert de organisatie over BI KPI's?",null,"Hoe wordt BI data gezien",null,"Wat wordt er met analyse resultaten gedaan"]
[]
["Niet",1,"Ja, door het hele bedrijf gecommuniceerd",5,"Geen BI data",1,"We doen geen analyses",1]
["Ad hoc via IT",2,"Ja, binnen het BI team gebruikt",4,"Noodzakelijke kostenpost",2,"Analyses worden niet altijd afgerond",2]
["Via standaard rapportages",3,"Nee",1,"Zinvol om op te sturen",3,"Analyses worden altijd afgerond en geimplementeerd; niet succesvolle projecten worden daar op afgerekend",3]
["Via standaard rapportages en analyse data",4,"Enkele KPI's voor het BI team",3,"Mogelijkheid tot kostenbesparing of verhoging inkomsten",4,"Analyse resultaten worden zo mogelijk geïmplementeerd; het onderzoek wordt geevalueerd",4]
["Met Self service BI",5,"Onbekend",1,"Strategisch asset van het bedrijf",5,"Resultaten worden gebruikt; het onderzoek wordt geevalueerd; leerpunten zijn input voor nieuwe experimenten",5]
[]
["BI in de organisatie vragen"]
["Hoe worden BI activiteiten geinitieerd?",null,"Hoe worden  BI ideeën opgepakt?",null,"Wie is eindverantwoordelijk voor BI?",null,"Wie maken er gebruik van BI data?",null,"Hoe zijn BI werkzaamheden georganiseerd?",null,"Wat is het niveau van BI kennis en cultuur?",null,"Wat is uw ambitie over 1-2 jaar"]
[]
["Er zijn geen BI activiteiten",1,"Niet",1,"Niemand",1,"Niemand",1,"Volledig decentraal: onafhankelijke BI professionals verspreid in de organisatie",2,"BI wordt niet gebruikt bij besluitvorming",1,"Geen ambitie",1]
["Er worden ad hoc BI initiatieven ontplooid",2,"Ad hoc",2,"BI professional",2,"Enkele eindgebruikers soms",2,"Vooral decentraal: samenwerkende BI professionals verspreid in de organisatie",3,"BI inzichten worden beperkt gebruikt bij besluitvorming en niet volledig vertrouwd",2,"Rapporteren over data",2]
["Er zijn mensen actief op zoek naar mogelijke BI toepassingen",3,"Er wordt een project opgezet",3,"VP Analytics",5,"Enkele eindgebruikers vaak",3,"Volledig gecentraliseerd: BI professionals in een centrale BI afdeling voor het hele bedrijf",4,"Mensen worden aangemoedigd BI inzichten te gebruiken bij besluitvorming",3,"Sturen in het bedrijf op data",3]
["Er is een project om BI ideeën te genereren",4,"Er is een proces om nieuwe BI ideeën uit te werken",4,"Marketing",4,"Enkele eindgebruikers en een professional",4,"Combinatie (Hub & Spoke model): BI aanpak centraal ontwikkeld; analyse decentraal uitgevoerd",5,"We hebben een grote groep mensen die zelf data analyseren en besluiten obv BI inzichten",4,"Resultaten verbeteren bv met voorspellende modellen of Machine Learning",4]
["Er is een regelmatig bijgewerkt visie document",5,"Er is een proces om nieuwe BI projecten uit te werken, te implementeren en te evalueren",5,"Finance",4,"Een groep full time BI professionals",5,"BI wordt in groepen (squads) uitgevoerd; BI professionals stemmen af (bv via chapters en guilds)",5,"BI wordt bedrijfsbreed en op alle niveaus gebruikt als input voor vernieuwing en enige basis voor besluitvorming",5,"Bedrijfs innovatie obv analyse en AI inzichten",5]
[null,null,null,null,"Operations",4,null,null,"Onbekend/geen BI professionals",1,"Onbekend",1]
[null,null,null,null,"IT",3]
[null,null,null,null,"CEO",5]
[null,null,null,null,"Directeur generaal",5]
[null,null,null,null,"Anders",3]
[]
["Algemeen"]
["Omzet",null,"FTE",null,"Branches"]
[]
["< €10 miljoen",null,"< 50",null,"Consumer Goods"]
["< €50 miljoen",null,"50-500",null,"Energie, Mijnbouw & Chemicaliën"]
["< €100 miljoen",null,"500-2500",null,"Financial services"]
["< €500 miljoen",null,"2500-10000",null,"Gezondheidszorg"]
[">=€500 miljoen",null,">10000",null,"Life Sciences"]
["Onbekend/Vertrouwelijk",null,"Onbekend/Vertrouwelijk",null,"Overheid/NGO"]
[null,null,null,null,"Productie / Automotive"]
[null,null,null,null,"Professional & Business Services"]
[null,null,null,null,"Retail"]
[null,null,null,null,"Technologie"]
[null,null,null,null,"Telecommunicatie"]
[null,null,null,null,"Vastgoed & Bouw"]
[null,null,null,null,"Vervoer en Vrije tijd"]
[null,null,null,null,"Onbekend/Vertrouwelijk"]
[]
[]
[]
[]
["volwassenheidsniveau","range start","volwassenheidsniveau naam","verschil ist-ambitie","omschrijving ambitie"]
[]
[1,0,"noemen we niveau Basis",-20,"weinig ambitieus te noemen is. Neem eens de tijd om na te denken welke mogelijkheden er zijn"]
[null,1.35,"is op weg naar niveau Rapportage",0.4,"realistisch is. Bepaal welke aspecten het meeste aandacht nodig hebben. Succes met uw plannen"]
[2,1.75,"zit rond niveau Rapportage",1,"een grote stap en daarmee ambitieus te noemen is. Defineer haalbare stappen en bepaal of er extra aandacht nodig is voor de aspecten waar iets lager op wordt gescoord"]
[null,2.25,"is tussen niveau Rapportage en Sturen",1.5,"een zeer grote stap die we daarom betitelen als onrealistisch. Stel haalbare doelen op en pas uw ambitieniveau voor de korte termijn aan"]
[3,2.75,"zit rond niveau Sturen"]
[null,3.25,"is tussen Sturen en Analyseren"]
[4,3.75,"zit rond niveau Analyseren"]
[null,4.25,"is tussen niveau Analyseren en Voorspellen"]
[5,4.75,"komt bij niveau Voorspellen"]

{"sheet":"Toelichting Werkwijze","index":13,"n_rows":13,"n_cols":1,"rows_kept":13,"cut":false,"hidden":true,"merged":[]}
["Bij de vragen kan een score van 1-5 punten werden behaald."]
["Deze score wordt gewogen"]
["Pas als alle kenmerken gevuld zijn kan naar een volgende pagina worden gebladerd"]
["terugbladeren kan altijd"]
["Als een vraag nog beantwoord moet worden is de tekst rood"]
[]
["Per aspect wordt de totaalscore over alle vragen gedeeld door de weging"]
["Dit levert een score op tussen 1 en 5 die de volwassenheid op dat aspect representeert"]
["Op dezelfde manier wordt een gewogen totale score berekend."]
[]
["Op basis van het verschil tussen de totale score en de ambitie wordt een advies gegeven"]
["Daarnaast wordt gekeken naar het verschil in de score op verschillende gebieden."]
["Als dat meer dan eenbepaalde waarde is wordt er een extra signaal gegeven daar aandacht aan te besteden"]